Cogmind - Beta 10.2 @@@ ROGUE MODE // 2021.08.04 @ 17:52:11 Player: Sanctumkeeper Result: Destroyed by Enhanced Grunt with Neutron Cannon Performance ------------- Evolutions (3) 1500 Regions Visited (9) 1800 Robots Destroyed (64) 320 Value Destroyed (1984) 1984 Prototype IDs (240) 4800 Alien Tech Used (0) 0 Bonus (3625) 3625 TOTAL SCORE: 14029 Bonus ------- Follower Combat Kills 25 Aligned with FarCom 300 Met Data Miner 300 Used Data Conduit 3000 Cogmind --------- Core Integrity 0/700 Matter 300/300 Energy 100/100 System Corruption 6% Temperature Cool (6) Movement Core (550) Ox10 Location -7/Data Miner Parts ------- > --- POWER (1) -------- (None) > --- PROPULSION (4) --- (None) > --- UTILITY (6) ------ Large Storage Unit Large Storage Unit Advanced Signal Interpreter > --- WEAPON (2) ------- (None) > --- INVENTORY (16) --- Antimatter Reactor Enhanced Flexi-carbon Leg Advanced Heat Sink Advanced Heat Sink Advanced Sensor Array Advanced Terrain Scanner Advanced Terrain Scan Processor Modified TNC Improved Melee Analysis Suite Improved Medium Armor Plating Hacking Suite Peak State ------------ > --- POWER ------------ Micro Nuclear Core > --- PROPULSION ------- Aerolev Unit Aerolev Unit Aerolev Unit Gravmag System > --- UTILITY ---------- Large Storage Unit Large Storage Unit Compact Battery Advanced Sensor Array Advanced Signal Interpreter Transmission Jammer > --- WEAPON ----------- Katana > --- INVENTORY -------- Light Nuclear Core Light Nuclear Core Light Nuclear Core Improved Hover Unit Advanced Sensor Array Experimental Sensor Array Advanced Terrain Scan Processor Modified TNC Microactuators Hardened Medium Armor Plating Hardened Medium Armor Plating Hardened Medium Armor Plating PSU Rigger YOLO Cannon Mini Grenade Launcher [Rating: 44] Favorites ----------- Power Light Ion Engine Engine Light Ion Engine Power Core Micro Nuclear Core Propulsion Light Treads Treads Light Treads Wheel Wheel Hover Unit Aerolev Unit Utility Large Storage Unit Device Advanced Sensor Array Storage Large Storage Unit Processor Advanced Signal Interpreter Protection Hardened Medium Armor Plating Weapon Light Assault Rifle Ballistic Gun Light Assault Rifle Launcher Grenade Launcher Slashing Weapon Katana Build | -11 -10 -10 -10 -9 -8 -7 -7 -7 -7 ------- Run | Scr Mat Min Exi Min Mat Fac Low Low Dat Slots Evolved 6 | . . . . . 4 2 . . . Power . | . . . . . . . . . . Propulsion 2 | . . . . . 1 1 . . . Utility 4 | . . . . . 3 1 . . . Weapon . | . . . . . . . . . . Parts Attached 84 | 6 2 5 . 4 43 16 2 2 4 Power 15 | 1 . 1 . 1 8 2 1 . 1 Engine 11 | 1 . 1 . 1 8 . . . . Core 4 | . . . . . . 2 1 . 1 Reactor . | . . . . . . . . . . Propulsion 30 | 2 . 1 . 1 18 6 1 1 . Treads 21 | 1 . 1 . 1 17 . . 1 . Leg . | . . . . . . . . . . Wheel 1 | 1 . . . . . . . . . Hover 8 | . . . . . 1 6 1 . . Flight . | . . . . . . . . . . Utility 20 | 1 2 . . . 6 7 . 1 3 Device 4 | . . . . . . 3 . 1 . Storage 10 | 1 2 . . . 6 1 . . . Processor 1 | . . . . . . 1 . . . Hackware . | . . . . . . . . . . Protection 5 | . . . . . . 2 . . 3 Artifact . | . . . . . . . . . . Weapon 19 | 2 . 3 . 2 11 1 . . . Energy Gun . | . . . . . . . . . . Energy Cannon . | . . . . . . . . . . Ballistic Gun 16 | 2 . 2 . 2 10 . . . . Ballistic Cannon . | . . . . . . . . . . Launcher 2 | . . 1 . . 1 . . . . Special Weapon . | . . . . . . . . . . Impact Weapon . | . . . . . . . . . . Slashing Weapon 1 | . . . . . . 1 . . . Piercing Weapon . | . . . . . . . . . . Special Melee Weapon . | . . . . . . . . . . Unidentified Prototypes 3 | . . . . . 3 . . . . Parts Lost 38 | . . 2 . 3 17 1 2 6 7 Power 6 | . . . . . 4 . . 1 1 Propulsion 17 | . . 1 . 1 8 1 2 3 1 Utility 6 | . . . . . . . . 2 4 Weapon 9 | . . 1 . 2 5 . . . 1 Highest Loss Streak 7 | . . 2 . 3 4 1 1 6 7 Average Slot Usage (%) 89 | . 99 99 100 100 95 89 84 63 54 Engine 7 | . 14 14 14 14 8 . . . . Core 1 | . . . . . . 6 7 3 1 Treads 17 | . 14 26 28 28 25 . . 2 6 Hover 4 | . . . . . . 29 23 9 . Device 3 | . . . . . . 12 15 8 4 Storage 33 | . 27 28 28 28 43 23 23 23 22 Processor 2 | . . . . . . 6 7 7 7 Ballistic Gun 14 | . 28 27 28 28 17 . . . . Slashing Weapon 2 | . . . . . . 6 7 7 6 Naked Turns . | . . . . . . . . . . Heaviest Build 87 | 10 38 39 38 38 87 83 43 43 56 Greatest Support 60 | 20 10 40 40 40 60 60 33 33 28 Greatest Overweight (x) 14 | . 3 3 . . 4 1 1 14 1 Average Overweight (x) . | . 2 . . . 1 . 1 1 1 Largest Inventory Capacity 32 | 6 16 16 16 16 32 32 16 16 16 Average Capacity 22 | 4 15 16 16 16 31 16 16 16 16 Most Carried 32 | 4 11 14 16 16 32 32 16 16 12 Average Carried 19 | 2 9 11 14 15 26 16 15 15 10 Final Capacity 32 | 6 16 16 16 16 32 16 16 16 16 Final Carried 32 | 4 11 14 15 16 32 16 16 11 11 Class Distribution -------------------- 57% | Mutant 42% | Hauler-Mutant Dominant Class ---------------- Mutant | -10/Materials Mutant | -10/Mines Mutant | -10/Exiles Mutant | -9/Mines Hauler-Mutant | -8/Materials Mutant | -7/Factory Mutant | -7/Lower Caves Mutant | -7/Lower Caves Mutant | -7/Data Miner Resources | -11 -10 -10 -10 -9 -8 -7 -7 -7 -7 ----------- Run | Scr Mat Min Exi Min Mat Fac Low Low Dat Matter Collected 2482 | 191 185 203 154 76 1351 223 20 17 62 Remotely . | . . . . . . . . . . Salvage Created 2593 | . 152 159 . 87 1888 140 66 29 72 Parts 145 | . 12 6 . 10 98 10 4 1 4 Haulers Intercepted 7 | . 1 . . . 5 1 . . . Recyclers Shooed . | . . . . . . . . . . Parts Field Recycled . | . . . . . . . . . . Retrieved Matter . | . . . . . . . . . . Parts Self-Destructed 3 | . . . . . . . 2 1 . Prevented . | . . . . . . . . . . Kills | -11 -10 -10 -10 -9 -8 -7 -7 -7 -7 ------- Run | Scr Mat Min Exi Min Mat Fac Low Low Dat Combat Hostiles Destroyed 50 | . 6 5 . 6 29 1 2 . 1 Melee 4 | . . . . . . 1 2 . 1 Guns 44 | . 6 3 . 6 29 . . . . AOE 2 | . . 2 . . . . . . . Classes Destroyed 14 | . 2 2 . . 6 1 2 1 . Builder 2 | . . . . . 2 . . . . Tunneler 1 | . . . . . 1 . . . . Hauler 7 | . 1 . . . 5 1 . . . Minesweeper 1 | . . . . . . . . 1 . Operator 1 | . . . . . . 1 . . . Watcher 4 | . . . . . 4 . . . . Swarmer 12 | . 6 . . 6 . . . . . Grunt 22 | . . 3 . . 19 . . . . Brawler 1 | . . . . . 1 . . . . Sentry 9 | . . . . . 8 1 . . . Hunter 1 | . . . . . 1 . . . . Programmer 1 | . . . . . . . 1 . . Enhanced Grunt 1 | . . . . . . . . . 1 Master Thief 1 | . . . . . . . 1 . . Assembled 2 | . . 2 . . . . . . . Best Kill Streak 6 | . 4 2 . 3 6 1 1 1 1 Combat Bots Only 6 | . 3 2 . 3 6 1 1 . 1 Max Kills in Single Turn 2 | . 1 1 . 1 2 1 1 1 1 Gunslinging . | . . . . . . . . . . Exploded 1 | . . 1 . . . . . . . Melee 1 | . . . . . . 1 1 . 1 Uniques/NPCs Destroyed . | . . . . . . . . . . Combat | -11 -10 -10 -10 -9 -8 -7 -7 -7 -7 -------- Run | Scr Mat Min Exi Min Mat Fac Low Low Dat Damage Taken 5680 | . 112 370 . 368 2431 463 227 500 1209 Core 1045 | . 32 24 . 54 213 138 97 202 285 Absorbed by Shields . | . . . . . . . . . . Core Remaining (%) 72 | 100 . . . 56 61 . . . . Volleys Fired 254 | . 19 20 . 16 199 . . . . Largest 2 | . 2 2 . 2 2 . . . . Hottest 46 | . 40 40 . 40 46 . . . . Shots Fired 492 | . 38 35 . 31 388 . . . . Gun 482 | . 38 30 . 31 383 . . . . Cannon . | . . . . . . . . . . Launcher 10 | . . 5 . . 5 . . . . Special . | . . . . . . . . . . Kinetic 482 | . 38 30 . 31 383 . . . . Thermal . | . . . . . . . . . . Explosive 10 | . . 5 . . 5 . . . . Electromagnetic . | . . . . . . . . . . Robot Hit Streak 16 | . 4 14 . 5 16 . . . . Robot Miss Streak 5 | . 2 2 . 3 5 . . . . Penetration Max . | . . . . . . . . . . Secondary Targets 4 | . 1 1 . 2 . . . . . Max Gunslinging Chain 1 | . 1 1 . 1 . . . . . Shots Hit Robots 386 | . 19 27 . 16 288 7 8 14 7 Core Hits 158 | . 9 10 . 6 113 4 3 2 11 Critical Hits 3 | . . . . . 2 . . 1 . Critical Kills . | . . . . . . . . . . Critical Parts Destroyed 3 | . . . . . 2 . . 1 . Melee Attacks 86 | . . . . . . 24 19 22 21 Impact . | . . . . . . . . . . Slashing 86 | . . . . . . 24 19 22 21 Piercing . | . . . . . . . . . . Sneak Attacks 3 | . . . . . . 1 . 1 1 Combat Hostiles . | . . . . . . . . . . Follow-up Attacks . | . . . . . . . . . . Damage Inflicted 5563 | . 149 344 . 149 3520 292 257 520 332 Guns 4055 | . 149 246 . 140 3520 . . . . Cannons . | . . . . . . . . . . Explosions 98 | . . 98 . . . . . . . Melee 1349 | . . . . . . 292 257 520 280 Ramming 61 | . . . . 9 . . . . 52 Kinetic 4055 | . 149 246 . 140 3520 . . . . Thermal . | . . . . . . . . . . Explosive 98 | . . 98 . . . . . . . Electromagnetic . | . . . . . . . . . . Impact . | . . . . . . . . . . Slashing 1349 | . . . . . . 292 257 520 280 Piercing . | . . . . . . . . . . Highest Corruption 6 | . . . . . 2 . 2 6 6 Average Corruption 2 | . . . . . 1 . 1 4 6 Corruption Purged . | . . . . . . . . . . Effects 53 | . . . . . 23 . 4 10 16 Message Errors 15 | . . . . . 8 . 2 3 2 Matter Fused 6 | . . . . . . . . 3 3 Heat Flow Errors 4 | . . . . . . . . 2 2 Energy Discharges 3 | . . . . . . . 1 . 2 Data Loss (minor) 13 | . . . . . 7 . 1 2 3 Data Loss (major) 2 | . . . . . . . . . 2 Targeting Errors 7 | . . . . . 5 . . . 2 Weapon Failures 3 | . . . . . 3 . . . . Overload Shots . | . . . . . . . . . . Overflow Damage 133 | . . . . . . . 12 96 25 Projectiles . | . . . . . . . . . . Explosions . | . . . . . . . . . . Melee 133 | . . . . . . . 12 96 25 Knockbacks . | . . . . . . . . . . Impact . | . . . . . . . . . . Kinetic . | . . . . . . . . . . Secondary . | . . . . . . . . . . Self-Inflicted Damage 146 | . . 100 . . 46 . . . . Shots 7 | . . 4 . . 3 . . . . Rammed 23 | . . . . 1 1 . . . 21 Targets Rammed 23 | . . . . 1 1 . . . 21 Kicked . | . . . . . . . . . . Crushed . | . . . . . . . . . . Highest Temperature 239 | . . 12 . . 6 7 . 239 119 Average Temperature 33 | . . 7 . . 3 7 . 118 65 Received Heat Transfer 1356 | . . 132 . . 936 132 . . 156 Siege Activations . | . . . . . . . . . . Robots Corrupted . | . . . . . . . . . . Combat Hostiles . | . . . . . . . . . . Parts Fried . | . . . . . . . . . . Impact Corruptions . | . . . . . . . . . . Robots Melted . | . . . . . . . . . . Combat Hostiles . | . . . . . . . . . . Parts Melted . | . . . . . . . . . . Heat Transferred . | . . . . . . . . . . Parts Sabotaged . | . . . . . . . . . . Parts Stolen 6 | . . . . . . . 2 4 . Parts Stripped . | . . . . . . . . . . Power Chain Reactions . | . . . . . . . . . . Missiles Intercepted . | . . . . . . . . . . Alert | -11 -10 -10 -10 -9 -8 -7 -7 -7 -7 ------- Run | Scr Mat Min Exi Min Mat Fac Low Low Dat Peak Influence 339 | . 199 134 . 110 339 286 . . . Initial 154 | . . 77 . . 42 154 . . . Average 117 | . 86 71 . 57 130 167 . . . Maximum Alert Level 1 | . . . . . 1 1 . . . Low Security (%) 83 | 100 100 100 . 100 76 77 . . . Level 1 16 | . . . . . 23 22 . . . Level 2 . | . . . . . . . . . . Level 3 . | . . . . . . . . . . Level 4 . | . . . . . . . . . . Level 5 . | . . . . . . . . . . High Security . | . . . . . . . . . . Max Security . | . . . . . . . . . . Squads Dispatched 9 | . 1 . . . 6 2 . . . Investigation 1 | . . . . . 1 . . . . Extermination 1 | . . . . . . 1 . . . Reinforcement 6 | . 1 . . . 4 1 . . . Assault . | . . . . . . . . . . Garrison 1 | . . . . . 1 . . . . Intercept . | . . . . . . . . . . Construction Impeded . | . . . . . . . . . . Haulers Reinforced . | . . . . . . . . . . Stealth | -11 -10 -10 -10 -9 -8 -7 -7 -7 -7 --------- Run | Scr Mat Min Exi Min Mat Fac Low Low Dat Distress Signals 2 | . . . . . 2 . . . . Communications Jammed . | . . . . . . . . . . Distress Signals . | . . . . . . . . . . Times Spotted 101 | . 9 5 . 6 52 11 8 7 3 Peak Tracking Total 8 | . 4 3 . 3 5 8 4 4 2 Tactical Retreats 7 | . . 1 . . 1 3 . 2 . Traps | -11 -10 -10 -10 -9 -8 -7 -7 -7 -7 ------- Run | Scr Mat Min Exi Min Mat Fac Low Low Dat Traps Triggered 9 | . . . . . 9 . . . . Indirectly . | . . . . . . . . . . Trap Hack Attempts . | . . . . . . . . . . Triggered . | . . . . . . . . . . Disarmed . | . . . . . . . . . . Reprogrammed . | . . . . . . . . . . Reused 1 | . . . . . . . . . 1 Traps Extracted . | . . . . . . . . . . Installed 1 | . . . . . . . . . 1 Triggered . | . . . . . . . . . . Machines | -11 -10 -10 -10 -9 -8 -7 -7 -7 -7 ---------- Run | Scr Mat Min Exi Min Mat Fac Low Low Dat Machines Disabled 1 | . . . . . 1 . . . . Max in Single Turn 1 | . . . . . 1 . . . . Garrison Access 1 | . . . . . 1 . . . . Machines Sabotaged . | . . . . . . . . . . Garrisons Compromised . | . . . . . . . . . . Overloaded Fab Kills . | . . . . . . . . . . Fab Network Shutdowns . | . . . . . . . . . . Hacking | -11 -10 -10 -10 -9 -8 -7 -7 -7 -7 --------- Run | Scr Mat Min Exi Min Mat Fac Low Low Dat Machines Accessed 22 | . 7 . 2 . 7 2 . . 4 Terminals 11 | . 6 . . . 4 1 . . . Fabricators . | . . . . . . . . . . Repair Stations . | . . . . . . . . . . Recycling Units 1 | . 1 . . . . . . . . Scanalyzers 3 | . . . . . 2 1 . . . Garrison Access 1 | . . . . . 1 . . . . Total Hacks 74 | . 15 . 2 . 20 6 . . 31 Successful 56 | . 9 . 2 . 11 3 . . 31 Failed 17 | . 5 . . . 9 3 . . . Catastrophic 1 | . 1 . . . . . . . . Database Lockouts 1 | . 1 . . . . . . . . Manual 22 | . 10 . 1 . 8 3 . . . Terminals 28 | . 14 . . . 11 3 . . . Fabricators . | . . . . . . . . . . Repair Stations . | . . . . . . . . . . Recycling Units 1 | . 1 . . . . . . . . Scanalyzers 10 | . . . . . 7 3 . . . Garrison Access 2 | . . . . . 2 . . . . Terminal Hacks 40 | . 4 . 2 . 2 1 . . 31 Record 12 | . . . 1 . . . . . 11 Part Schematic 10 | . . . . . . . . . 10 Robot Schematic 7 | . . . . . . . . . 7 Robot Analysis 1 | . 1 . . . . . . . . Prototype ID Bank 4 | . 1 . . . . . . . 3 Branch Access Points 2 | . 1 . . . . 1 . . . Unreport Threat 1 | . . . . . 1 . . . . Locate Traps 1 | . 1 . . . . . . . . Hauler Manifests 1 | . . . . . 1 . . . . EX-Prototype ID Bank 1 | . . . 1 . . . . . . Fabricator Hacks . | . . . . . . . . . . Repair Station Hacks . | . . . . . . . . . . Recycling Unit Hacks 1 | . 1 . . . . . . . . Report Inventory 1 | . 1 . . . . . . . . Scanalyzer 4 | . . . . . 3 1 . . . Insert Component 3 | . . . . . 2 1 . . . Analyze 1 | . . . . . 1 . . . . Garrison Access Hacks 1 | . . . . . 1 . . . . Seal Access 1 | . . . . . 1 . . . . Unauthorized Hacks 10 | . 4 . . . 5 1 . . . Terminals 10 | . 4 . . . 5 1 . . . Track 4 | . 2 . . . 2 . . . . Botnet 6 | . 2 . . . 3 1 . . . Fabricators . | . . . . . . . . . . Repair Stations . | . . . . . . . . . . Recycling Units . | . . . . . . . . . . Scanalyzers . | . . . . . . . . . . Garrison Access . | . . . . . . . . . . Data Cores Recovered 1 | . . . . . . 1 . . . Used 1 | . . . . . . 1 . . . Hacking Detections 10 | . 4 . . . 4 2 . . . Full Trace Events . | . . . . . . . . . . Feedback Events . | . . . . . . . . . . Feedback Blocked . | . . . . . . . . . . Robot Schematics Acquired 7 | . . . . . . . . . 7 Robots Built . | . . . . . . . . . . Matter . | . . . . . . . . . . Time . | . . . . . . . . . . Total Robot Build Rating . | . . . . . . . . . . Part Schematics Acquired 10 | . . . . . . . . . 10 Parts Built . | . . . . . . . . . . Matter . | . . . . . . . . . . Time . | . . . . . . . . . . Total Part Build Rating . | . . . . . . . . . . Parts Repaired . | . . . . . . . . . . Time . | . . . . . . . . . . Parts Recycled . | . . . . . . . . . . Recycled Matter . | . . . . . . . . . . Retrieved Matter . | . . . . . . . . . . Retrieved Components . | . . . . . . . . . . Parts Scanalyzed 1 | . . . . . 1 . . . . Part Schematics Acquired . | . . . . . . . . . . Parts Damaged . | . . . . . . . . . . Bothacking | -11 -10 -10 -10 -9 -8 -7 -7 -7 -7 ------------ Run | Scr Mat Min Exi Min Mat Fac Low Low Dat Used RIF Installer . | . . . . . . . . . . Robots Hacked . | . . . . . . . . . . Non-combat . | . . . . . . . . . . Combat . | . . . . . . . . . . Robot Hacks Applied . | . . . . . . . . . . Relay Couplers Released . | . . . . . . . . . . Robots Rewired . | . . . . . . . . . . Allies Hacked . | . . . . . . . . . . Hacks Repelled . | . . . . . . . . . . Allies | -11 -10 -10 -10 -9 -8 -7 -7 -7 -7 -------- Run | Scr Mat Min Exi Min Mat Fac Low Low Dat Total Allies 2 | . . 2 . . . . . . . Largest Group 2 | . . 2 1 . . . . . . Highest-Rated Group 43 | . . 43 31 . . . . . . Highest-Rated Ally 31 | . . 31 31 . . . . . . Total Orders . | . . . . . . . . . . Ally Attacks 6 | . . 6 . . . . . . . Total Damage 103 | . . 103 . . . . . . . Kills 1 | . . 1 . . . . . . . Allies Corrupted . | . . . . . . . . . . Allies Melted . | . . . . . . . . . . Intel | -11 -10 -10 -10 -9 -8 -7 -7 -7 -7 ------- Run | Scr Mat Min Exi Min Mat Fac Low Low Dat Robot Analysis Total 116 | . 1 . . . . . . . 115 Derelict Logs Recovered 6 | . . 2 . 2 . . 1 1 . Drone Launches . | . . . . . . . . . . Drone Recoveries . | . . . . . . . . . . Exploration | -11 -10 -10 -10 -9 -8 -7 -7 -7 -7 ------------- Run | Scr Mat Min Exi Min Mat Fac Low Low Dat Turns Passed 7381 | 45 386 601 473 393 3154 566 579 635 549 Spaces Moved 3996 | 39 287 339 291 209 1147 692 498 377 117 Core 18 | 4 . . . . . . . 14 . Treads 2226 | 3 . 316 291 209 1147 5 . 138 117 Legs . | . . . . . . . . . . Wheels 342 | 32 287 23 . . . . . . . Hover 1410 | . . . . . . 687 498 225 . Flight . | . . . . . . . . . . Fastest Speed 40 | 50 80 110 160 160 180 40 105 105 180 Average Speed 134 | 83 109 156 160 160 184 41 105 152 180 Slowest Speed 750 | 160 110 160 160 160 240 183 106 750 180 Overloaded Moves . | . . . . . . . . . . Propulsion Burnouts . | . . . . . . . . . . Robots Hopped . | . . . . . . . . . . Cave-ins Triggered . | . . . . . . . . . . Exploration Rate (%) 57 | 3 67 81 69 54 73 26 60 61 78 Regions Visited 9 Branch Regions 6 Pre-discovered Areas 28 | . . 1 1 . . . . . 26 Known Exits Taken 6 | . 1 . . 1 1 1 1 1 . Unknown Exits Taken 3 | 1 . 1 1 . . . . . . Scrap Searched 7 | . . 1 . 2 . . 3 1 . Spaces Dug 54 | . . . . . 39 15 . . . Terrain Destroyed 84 | . . 30 . . 39 15 . . . Melee 15 | . . . . . . 15 . . . Projectile . | . . . . . . . . . . AOE 69 | . . 30 . . 39 . . . . Terrain Rammed . | . . . . . . . . . . Walls Destroyed . | . . . . . . . . . . Machines Disabled . | . . . . . . . . . . Actions | -11 -10 -10 -10 -9 -8 -7 -7 -7 -7 --------- Run | Scr Mat Min Exi Min Mat Fac Low Low Dat Total 5392 | 48 324 376 302 240 1824 944 529 406 399 Wait 797 | . 9 7 . 3 369 179 . . 230 Move 3987 | 38 286 338 290 208 1146 691 497 376 117 Hop . | . . . . . . . . . . Pick Up 93 | 4 7 5 6 5 44 9 6 3 4 Fast Attach 28 | 6 1 . . 1 16 2 1 1 . Attach 35 | . . 2 . 2 16 11 . 1 3 Detach 2 | . . . . . . 2 . . . Swap 22 | . 1 3 . 1 12 3 1 . 1 Drop 64 | . 1 1 6 3 21 23 5 3 1 Fire 254 | . 19 20 . 16 199 . . . . Melee 86 | . . . . . . 24 19 22 21 Ram 2 | . . . . . . . . . 2 Kick . | . . . . . . . . . . Crush 21 | . . . . 1 1 . . . 19 Escape Stasis . | . . . . . . . . . . Rewire . | . . . . . . . . . . Trap 1 | . . . . . . . . . 1 Miscellaneous . | . . . . . . . . . . Route ------- -11/Scrapyard -10/Materials (discovered 2 exits: [*Mat] / *Min) -10/Mines (discovered 3 exits: [*Mat x2] / *Exi) -10/Exiles (discovered 2 exits: [*Min x2]) -9/Mines -8/Materials (discovered 2 exits: *Fac x2) -7/Factory (discovered 3 exits: *Fac / *Low x2) -7/Lower Caves -7/Lower Caves (discovered 2 exits: *Fac / *Dat) -7/Data Miner (discovered 1 exit: [*Pro]) History --------- Turn | Location | Event 20 | -11/Scrapyard | Discovered new exit (range 16) 46 | -11/Scrapyard | Entered Materials 308 | -10/Materials | Build established: Mutant 333 | -10/Materials | Central database locked down 335 | -10/Materials | Discovered new exit (range 14) 367 | -10/Materials | Identified exit to Mines 432 | -10/Materials | Entered Mines 442 | -10/Mines | Excavation squad dispatched 442 | -10/Mines | A large section of the Mines collapsed 547 | -10/Mines | Discovered new exit (range 4) 664 | -10/Mines | Found a hidden stash of uninstalled traps 845 | -10/Mines | Found a damaged Exp. Sensor Array with a note attached 848 | -10/Mines | Found Prototype Device 921 | -10/Mines | Learned 2 Materials zone layouts 967 | -10/Mines | Discovered new exit (range 5) 970 | -10/Mines | Learned location of Storage (-9) 980 | -10/Mines | Discovered new exit (range 6) 1025 | -10/Mines | Deemed a non-threat by the Exiles lab entrance 1033 | -10/Mines | Entered Exiles 1033 | -10/Exiles | Accompanied by 1 ally 1054 | -10/Exiles | Discovered new exit (range 15) 1063 | -10/Exiles | Led the pair of lost Derelicts to a safe place 1072 | -10/Exiles | Met 8R-AWN 1097 | -10/Exiles | Met EX-HEX 1200 | -10/Exiles | Met EX-DEC 1226 | -10/Exiles | Learned location of Zion (-6) 1259 | -10/Exiles | Met EX-BIN 1279 | -10/Exiles | Aligned with FarCom system 1280 | -10/Exiles | Given EX-Vault access code 1319 | -10/Exiles | Opened EX-Vault 1334 | -10/Exiles | Found Modified TNC 1336 | -10/Exiles | Found PSU Rigger 1345 | -10/Exiles | Found YOLO Cannon 1378 | -10/Exiles | Warned to stay clear of 0b10 Research branches 1482 | -10/Exiles | Discovered new exit (range 14) 1506 | -10/Exiles | Stole three prototypes: Modified TNC, PSU Rigger, YOLO Cannon 1506 | -10/Exiles | Entered Mines 1591 | -9/Mines | Learned 2 Materials zone layouts 1773 | -9/Mines | Lost 3 parts (1n2w) 1778 | -9/Mines | Identified exit to Materials 1899 | -9/Mines | Entered Materials 1899 | -8/Materials | Evolved 4 slots: Propulsion x1, Utility x3 1900 | -8/Materials | Identified exit to Factory 1929 | -8/Materials | Identified Exp. Sensor Array 2169 | -8/Materials | Build established: Hauler-Mutant 2932 | -8/Materials | Lost 4 parts (1p2n1w) 3217 | -8/Materials | Garrison activated, responded to threat 3839 | -8/Materials | Lost 3 parts (1n2w) 5053 | -8/Materials | Entered Factory 5053 | -7/Factory | Evolved 2 slots: Propulsion x1, Utility x1 5055 | -7/Factory | FarCom data flow suspended 5257 | -7/Factory | Discovered new exit (range 15) 5265 | -7/Factory | Identified exit to Factory 5327 | -7/Factory | Identified exit to Lower Caves 5330 | -7/Factory | Build established: Mutant 5619 | -7/Factory | Entered Lower Caves 5619 | -7/Lower Caves | Spotted DV-9YZ(f) 5620 | -7/Lower Caves | Encountered a Master Thief 5620 | -7/Lower Caves | Spotted YV-9JP(f) 5620 | -7/Lower Caves | PSU Rigger stolen by Master Thief 5621 | -7/Lower Caves | Encountered a Master Thief 5662 | -7/Lower Caves | Broken Exp. Sensor Array stolen by Master Thief 5662 | -7/Lower Caves | Destroyed DV-9YZ(f) 5910 | -7/Lower Caves | Learned location of 1 exit from Factory 6140 | -7/Lower Caves | Discovered new exit (range 4) 6144 | -7/Lower Caves | Identified exit to Lower Caves 6198 | -7/Lower Caves | Entered another Lower Caves area 6228 | -7/Lower Caves | Discovered exit to Factory (range 14) 6492 | -7/Lower Caves | Core integrity fell below 50% 6526 | -7/Lower Caves | Lost 6 parts (1p3n2u) 6787 | -7/Lower Caves | Spotted SZ-CHA(f) 6788 | -7/Lower Caves | Spotted XN-8B3(f) 6789 | -7/Lower Caves | Encountered a Master Thief 6789 | -7/Lower Caves | Encountered a Master Thief 6789 | -7/Lower Caves | Spotted 8D-CJ3(f) 6790 | -7/Lower Caves | Encountered a Master Thief 6791 | -7/Lower Caves | Spotted HZ-NHF(f) 6792 | -7/Lower Caves | Encountered a Master Thief 6793 | -7/Lower Caves | Nanoactuators stolen by Master Thief 6794 | -7/Lower Caves | Mni. Grenade Launcher stolen by Master Thief 6805 | -7/Lower Caves | Broken Exp. Sensor Array stolen by Master Thief 6807 | -7/Lower Caves | Dirty Bomb Trap stolen by Master Thief 6815 | -7/Lower Caves | Discovered new exit (range 12) 6831 | -7/Lower Caves | Identified exit to Data Miner 6833 | -7/Lower Caves | Entered Data Miner 6833 | -7/Data Miner | Discovered new exit (range 6) 6868 | -7/Data Miner | Met Data Miner 6898 | -7/Data Miner | Learned location of Section 7 (-2) 6898 | -7/Data Miner | Acquired the access code to Warlord's prototype stash 6931 | -7/Data Miner | Received God Mode back door access code from Data Miner 7010 | -7/Data Miner | Interfaced with the Data Conduit 7376 | -7/Data Miner | Core integrity fell below 20% 7382 | -7/Data Miner | Destroyed by Enhanced Grunt with Neutron Cannon Last Messages --------------- 07333_ Com. Battery destroyed. 07335_ Katana destroyed. 07336_ Slammed into Enhanced Grunt. 07342_ Critical hit. 07343_ Slammed into Enhanced Grunt. 07346_ Lgt. Nuclear Core destroyed. 07348_ Slammed into Enhanced Grunt. 07349_ Hrd. Medium Armor Plating destroyed. 07350_ Slammed into Enhanced Grunt. 07355_ Acquired 2 matter. 07355_ Slammed into Enhanced Grunt. 07357_ Acquired 2 matter. 07358_ Slammed into Enhanced Grunt. 07367_ System corrupted: Component data lost. 07367_ Slammed into Enhanced Grunt. 07368_ Hrd. Medium Armor Plating destroyed. 07369_ Slammed into Enhanced Grunt. 07371_ Med. Treads destroyed. 07371_ Imp. Light Armor Plating destroyed. 07371_ Slammed into Enhanced Grunt. Map ----- +----------------------------------------------------+ | | | | | | | | | | | | | | | | | | | | | | | | | | | | | | | ???????????????????????????? | | ???????????????????????????? | | ???????????????????????????? | | ???????????????????????????? | | ???????????????????????????? | | ???##################??????? | | ??##%%%"""""""""""""######?? | | ??#%%%""""""" """"""""### | | ??#%%"""""""" | | ??#%"""""" | | ??#@"""""" | | ??#gg%%% | | ??#""""""" | | ??#""""""" """" | | ??#"""""""" """"## | | ??##""""""" """""###? | | ???##"""""""" "#####??? | | ????########"## "#??????? | | ???????????#"### "#??????? | | ???????????#"### "#??????? | | ???????????#"?# "#??????? | | ?????????????## "#??????? | | ?????????????# "#??????? | | ?????????????### "#??????? | | ???????????????# "##?????? | | ??????????????## ""#?????? | | ???????????#?## ""#?????? | | ??????????##"#"X ""#?????? | | ??????????""""" "####??? | | ??????????""""" X"""""??? | | ??????????##"#"X "##"#??? | | ???????????#?## X""""#??? | | ??????????????## "##"#??? | | ???????????????#######?????? | | ???????????????????????????? | +----------------------------------------------------+ Best States ------------- Heat Dissipation 34 Energy Generation 15 Energy Capacity 460 Matter Stores 300 Matter Capacity 300 Sight Range 16 Robot Scan Range 16 Terrain Scan Density 10 Jamming Range 8 Armor Coverage 450 Evasion (%) 57 Recoil Reduction 3 Item Schematics ----------------- Combat Drone Bay | -7/Data Miner | Free Lgt. Regenerative Plating | -7/Data Miner | Free Exp. Flexi-carbon Leg | -7/Data Miner | Free Cmb. Gravmag System | -7/Data Miner | Free Exp. Terrain Scanner | -7/Data Miner | Free Exp. Terrain Scan Processor | -7/Data Miner | Free Tactical Coordination Suite | -7/Data Miner | Free Exp. ECM Suite | -7/Data Miner | Free Kinetic Spear | -7/Data Miner | Free Plasma Sword | -7/Data Miner | Free Robot Schematics ------------------ S-27 Virus | -7/Data Miner | Free G-50 Soldier | -7/Data Miner | Free G-67 Veteran | -7/Data Miner | Free X-72 Disruptor | -7/Data Miner | Free H-66 Slayer | -7/Data Miner | Free P-70 Sage | -7/Data Miner | Free I-36 Angel | -7/Data Miner | Free Fabricated ------------ Nothing Alien Tech Used ----------------- None Achievements -------------- None Challenges ------------ None Game ------ Seed SuperchargedAerolevArmor Manual? 0 Play Time 00:49:09 Cumulative 178.7 hours Start 2021.08.04 @ 17:04:25 End 2021.08.04 @ 17:52:11 Sessions 1 Manual Loads 0 Difficulty Rogue Special Mode None Game No. 134 Rogue 134 Adventurer 0 Explorer 0 Win Type - Total 6 Types 5/0/0/0/0/0/0/1/0 Lore% 81 Gallery% 70 Achievement% 58 Wizard Run 0 Options --------- ASCII 0 Keyboard 1 Movement Arrows Keybinds 0 Fullscreen 1 Font 18/SmallcapsGlow Map View 76x50 Tactical HUD 1 Map Filters NONE Filters NONE Steam 1 RUN: 7289075d-c836-4076-97a5-8a616d17b932